fUST/lending_fUST_20250217
["ID","MTS","AMOUNT","RATE_DAILY","PERIOD"]
[353328452,1739767845665,-261.27913779,0.00016307,2]
[353328454,1739767845677,-261.27913779,0.00016307,2]
[353328456,1739767845687,-261.27913779,0.00016307,2]
[353328458,1739767845696,-261.27913779,0.00016307,2]
[353328460,1739767845707,-261.27913779,0.00016307,2]
[353328462,1739767845716,-261.27913779,0.00016307,2]
[353328464,1739767845726,-261.27913779,0.00016307,2]
[353328467,1739767845736,-261.27,0.00016307,2]
[353328468,1739767845747,-3000.0,0.0001631,2]
[353328470,1739767845758,-3000.0,0.0001632,2]
[353328472,1739767845767,-3000.0,0.0001633,2]
[353328474,1739767845777,-3000.0,0.00016338,2]
[353328476,1739767845786,-3000.0,0.0001634,2]
[353328479,1739767845797,-3000.0,0.0001635,2]
[353328480,1739767845806,-268.2072901,0.00016356,2]
[353328483,1739767845817,-153.0,0.00016356,2]
[353328485,1739767845826,-153.0,0.00016356,2]
[353328488,1739767845836,-3000.0,0.0001636,2]
[353328490,1739767845845,-3000.0,0.0001637,2]
[353328492,1739767845854,-500.0,0.00016373,2]
[353328493,1739767845864,-500.0,0.00016373,2]
[353328496,1739767845873,-524.11952849,0.00016373,2]
[353328497,1739767845883,-500.0,0.00016373,2]
[353328499,1739767845892,-500.0,0.00016373,2]
[353328502,1739767845902,-331.82142322,0.00016373,2]
[353328503,1739767845911,-500.0,0.00016373,2]
[353328505,1739767845920,-500.0,0.00016373,2]
[353328507,1739767845929,-572.4461124,0.00016373,2]
[353328509,1739767845939,-500.0,0.00016373,2]
[353328511,1739767845948,-3000.0,0.0001638,2]
[353328513,1739767845958,-3000.0,0.0001639,2]
[353328516,1739767845968,-167.145832,0.00016391,2]
[353328519,1739767845977,-167.145842,0.00016391,2]
[353328521,1739767845986,-151.0,0.00016391,2]
[353328524,1739767845996,-151.0,0.00016391,2]
[353328528,1739767846006,-294.367141,0.00016391,2]
[353328530,1739767846015,-158.893446,0.00016391,2]
[353328532,1739767846024,-158.893446,0.00016391,2]
[353328533,1739767846034,-158.893446,0.00016391,2]
[353328535,1739767846044,-158.893446,0.00016391,2]
[353328538,1739767846054,-158.893446,0.00016391,2]
[353328540,1739767846063,-158.893446,0.00016391,2]
[353328542,1739767846073,-158.893446,0.00016391,2]
[353328544,1739767846082,-158.893452,0.00016391,2]
[353328546,1739767846091,-395.573829,0.00016391,2]
[353328548,1739767846100,-395.573829,0.00016391,2]
[353328550,1739767846110,-395.573829,0.00016391,2]
[353328552,1739767846118,-395.57382784,0.00016391,2]
[353328554,1739767846128,-11392.70202214,0.00016391,7]
[353328556,1739767846137,-520.09384565,0.00016391,2]
[353328558,1739767846147,-1846.56093092,0.00016391,2]
[353328560,1739767846156,-151.07479079,0.00016391,2]
[353328562,1739767846165,-1999.999999,0.00016391,7]
[353328564,1739767846173,-28427.8728176,0.00016391,7]
[353328566,1739767846183,-532.48780673,0.00016391,3]
[353328567,1739767846192,-3048.67298285,0.00016391,2]
[353328570,1739767846202,-188.55546525,0.00016391,12]
[353328572,1739767846211,-1063.88472389,0.00016391,10]
[353328574,1739767846220,-440.68772913,0.00016391,2]
[353328576,1739767846230,-2992.11752465,0.00016391,7]
[353328578,1739767846238,-23282.21132299,0.00016391,2]
[353328580,1739767846253,-2334.52853655,0.00016391,2]
[353328594,1739767846373,-976.0,0.00016391,2]
[353329099,1739768731122,-392.16477657,0.00010472,2]
[353329100,1739768731145,-400.0,0.00010578,2]
[353329101,1739768731168,-108.80189055,0.00010685,2]
[353329104,1739768742096,-392.16477657,0.00010263,2]
[353329105,1739768742119,-392.16477657,0.00010367,2]
[353329106,1739768742140,-291.19810945,0.00010685,2]
[353329107,1739768742162,-151.0,0.00013151,2]
[353329108,1739768742183,-42.89268029,0.0001332,2]
[353329109,1739768830120,-145.51482131,0.0001332,2]
[353329110,1739768830142,-1735.2248259,0.00013382,2]
[353329111,1739768830164,-495.67204432,0.00013382,2]
[353329112,1739768830187,-1156.60530008,0.00013599,2]
[353329113,1739768830208,-153.0,0.00013699,2]
[353329114,1739768830231,-153.0,0.00013699,2]
[353329115,1739768830252,-300.0,0.00013728,2]
[353329116,1739768830273,-5877.75820299,0.00013729,2]
[353329117,1739768949321,-166.7666,0.00013183,2]
[353329174,1739769032792,-253.0,0.00013051,2]
[353329176,1739769032802,-227.845,0.00013183,2]
[353329207,1739769038507,-253.0,0.0001292,2]
[353329208,1739769038517,-25.155,0.00013183,2]
[353329209,1739769038526,-11110.31078383,0.00013184,2]
[353329210,1739769038538,-685.98432837,0.00013184,2]
[353329211,1739769038550,-13103.7048878,0.00013184,2]
[353329212,1739769038559,-499.9374001,0.00013368,2]
[353329213,1739769038569,-133.21964686,0.00013709,2]
[353329214,1739769038582,-845.17717886,0.00013709,2]
[353329221,1739769038974,-100.10740746,0.00013709,2]
[353329614,1739769045979,-879.3180194,0.00013572,2]
[353329616,1739769045989,-6360.1932996,0.00013709,2]
[353329618,1739769045998,-4066.63002007,0.00013737,2]
[353329620,1739769046009,-150.0,0.00014,2]
[353329621,1739769046018,-152.0,0.00014211,2]
[353329623,1739769046027,-500.0,0.00014284,2]
[353329625,1739769046036,-444.59501055,0.00014284,2]
[353329627,1739769046047,-500.0,0.00014284,2]
[353329629,1739769046061,-321.31349646,0.00014284,2]
[353329631,1739769046076,-178.68650354,0.00014284,2]
[353329632,1739769046086,-500.0,0.00014284,2]
[353329633,1739769046096,-500.0,0.00014284,2]
[353329634,1739769046107,-268.47726591,0.00014284,2]
[353329635,1739769046116,-500.0,0.00014337,2]
[353329636,1739769046126,-500.0,0.00014337,2]
[353329637,1739769046137,-313.97481182,0.00014337,2]
[353329638,1739769046147,-500.0,0.00014337,2]
[353329639,1739769046156,-500.0,0.00014338,2]
[353329640,1739769046166,-500.0,0.00014338,2]
[353329642,1739769046175,-500.0,0.00014338,2]
[353329643,1739769046185,-500.0,0.00014338,2]
[353329644,1739769046194,-500.0,0.00014338,2]
[353329646,1739769046203,-500.0,0.00014338,2]
[353329648,1739769046212,-500.0,0.00014338,2]
[353329649,1739769046222,-544.94607858,0.00014339,2]
[353329650,1739769046231,-500.0,0.00014339,2]
[353329652,1739769046241,-500.0,0.00014339,2]
[353329654,1739769046250,-500.0,0.00014339,2]
[353329655,1739769046259,-500.0,0.00014339,2]
[353329656,1739769046269,-500.0,0.00014339,2]
[353329658,1739769046278,-500.0,0.00014339,2]
[353329660,1739769046288,-601.31202332,0.0001434,2]
[353329662,1739769046297,-500.0,0.0001434,2]
[353329664,1739769046306,-500.0,0.0001434,2]
[353329666,1739769046315,-500.0,0.00014419,2]
[353329668,1739769046325,-500.0,0.00014419,2]
[353329670,1739769046335,-500.0,0.00014419,2]
[353329671,1739769046344,-500.0,0.0001442,2]
[353329673,1739769046353,-500.0,0.0001442,2]
[353329675,1739769046364,-500.0,0.0001442,2]
[353329677,1739769046373,-500.0,0.0001442,2]
[353329679,1739769046382,-259.57594792,0.0001442,2]
[353329681,1739769046392,-500.0,0.00014421,2]
[353329682,1739769046406,-500.0,0.00014457,2]
[353329684,1739769046416,-500.0,0.00014501,2]
[353329686,1739769046426,-500.0,0.00014501,2]
[353329688,1739769046435,-500.0,0.00014503,2]
[353329691,1739769046453,-500.0,0.00014503,2]
[353329694,1739769046465,-500.0,0.00014504,2]
[353329696,1739769046475,-500.0,0.00014532,2]
[353329698,1739769046484,-500.0,0.00014584,2]
[353329700,1739769046493,-500.0,0.00014584,2]
[353329702,1739769046503,-353.39,0.00014585,2]
[353329704,1739769046512,-500.0,0.00014585,2]
[353329706,1739769046522,-500.0,0.00014586,2]
[353329708,1739769046532,-500.0,0.00014666,2]
[353329710,1739769046542,-500.0,0.00014666,2]
[353329712,1739769046551,-500.0,0.00014667,2]
[353329714,1739769046561,-240.53,0.00014668,2]
[353329716,1739769046571,-184.478,0.00014725,2]
[353329718,1739769046582,-500.0,0.00014748,2]
[353329720,1739769046592,-500.0,0.00014748,2]
[353329722,1739769046601,-500.0,0.00014749,2]
[353329724,1739769046613,-500.0,0.0001483,2]
[353329726,1739769046622,-500.0,0.0001483,2]
[353329728,1739769046631,-431.08,0.00014831,2]
[353329730,1739769046641,-581.02452317,0.00014888,2]
[353329733,1739769046650,-3000.0,0.000149,2]
[353329735,1739769046660,-216.18349664,0.000149,2]
[353329737,1739769046669,-216.18349664,0.000149,2]
[353329739,1739769046679,-500.0,0.00014912,2]
[353329741,1739769046688,-500.0,0.00014912,2]
[353329743,1739769046698,-500.0,0.00014995,2]
[353329745,1739769046707,-500.0,0.00014995,2]
[353329747,1739769046717,-1000.0,0.00015005,2]
[353329749,1739769046726,-250.0,0.00015006,2]
[353329751,1739769046735,-500.0,0.00015077,2]
[353329753,1739769046745,-562.1,0.00015077,2]
[353329755,1739769046754,-500.0,0.00015159,2]
[353329757,1739769046763,-339.0,0.0001519,2]
[353329759,1739769046774,-500.0,0.00015241,2]
[353329761,1739769046783,-500.0,0.00015323,2]
[353329763,1739769046792,-457.01,0.00015406,2]
[353329765,1739769046801,-3000.0,0.00016,2]
[353329767,1739769046811,-3000.0,0.0001601,2]
[353329769,1739769046821,-3000.0,0.0001602,2]
[353329771,1739769046830,-3000.0,0.0001603,2]
[353329790,1739769046839,-3000.0,0.0001604,2]
[353329793,1739769047007,-3000.0,0.0001605,2]
[353329795,1739769047018,-3000.0,0.0001606,2]
[353329797,1739769047027,-3000.0,0.0001607,2]
[353329799,1739769047037,-3000.0,0.0001608,2]
[353329801,1739769047046,-3000.0,0.0001609,2]
[353329803,1739769047056,-3000.0,0.000161,2]
[353329805,1739769047069,-3000.0,0.0001611,2]
[353329807,1739769047078,-3000.0,0.0001612,2]
[353329809,1739769047088,-3000.0,0.0001613,2]
[353329811,1739769047098,-223.08585674,0.00016139,2]
[353329813,1739769047111,-3000.0,0.0001614,2]
[353329815,1739769047121,-52478.53895536,0.0001614,2]
[353329818,1739769047135,-689.3147287,0.0001614,2]
[353329820,1739769047148,-14402.6149568,0.0001614,2]
[353329825,1739769047193,-192.0,0.0001459,2]
[353329828,1739769047203,-298.66197027,0.00016119,2]
[353329830,1739769047216,-201.33802973,0.00016119,2]
[353329832,1739769047226,-500.0,0.00016119,2]
[353329834,1739769047236,-500.0,0.00016119,2]
[353329836,1739769047247,-437.16518361,0.00016119,2]
[353329838,1739769047257,-9286.86893956,0.0001614,2]
[353329840,1739769047269,-959.7,0.0001614,2]
[353329842,1739769047280,-26907.88425628,0.0001614,2]
[353329844,1739769047292,-2649.99999998,0.0001614,2]
[353330146,1739769257673,5969.23,5e-05,2]
[353330150,1739770029132,-317.15214558,0.00010472,2]
[353330151,1739770029156,-317.15214558,0.00010578,2]
[353330152,1739770029180,-400.0,0.00010685,2]
[353330153,1739770029204,-273.40819973,0.00013151,2]
[353330154,1739770029226,-1883.19717169,0.000132,2]
[353330155,1739770029250,-300.0,0.00013697,2]
[353330156,1739770029273,-355.94999976,0.00013698,2]
[353330157,1739770029296,-500.0,0.00013698,2]
[353330158,1739770029319,-543.42,0.00013698,2]
[353330159,1739770029341,-424.72678117,0.00013698,2]
[353330160,1739770041095,-75.27321883,0.00013698,2]
[353330161,1739770041117,-122.1125818,0.00013698,2]
[353330162,1739770043093,-377.8874182,0.00013698,2]
[353330163,1739770043122,-500.0,0.00013698,2]
[353330164,1739770043146,-238.33001683,0.00013698,2]
[353330165,1739770043314,-7.6622476,0.00013698,2]
[353330166,1739770050103,-766.00604406,0.00013698,2]
[353330167,1739770052097,-5.71170834,0.00013698,2]
[353330168,1739770052121,-480.27302618,0.00013698,2]
[353330170,1739770117743,1032.40704363,0.00016371,90]
[353330218,1739770238491,-292.0,0.00012874,2]
[353330219,1739770238501,-4923.39025586,0.00012875,2]
[353330220,1739770238512,-1528.63440314,0.00012875,2]
[353330234,1739770239939,-650.65101388,0.00012875,2]
[353330235,1739770239951,-374.888957,0.00012875,2]
[353330265,1739770242798,-735.4101932,0.00012875,2]
[353330266,1739770242810,-540.99494248,0.00012875,2]
[353330267,1739770242822,-358.08949814,0.00012875,2]
[353330268,1739770242834,-1085.07349445,0.00012875,2]
[353330269,1739770242845,-375.481998,0.00012875,2]
[353330270,1739770242913,-2464.79153456,0.00012875,2]
[353330280,1739770245694,-7693.12202349,0.00012875,2]
[353330281,1739770245704,-837.1463068,0.00013008,2]
[353330282,1739770245713,-500.0,0.00013698,2]
[353330283,1739770245723,-9340.5328373,0.00013699,2]
[353330284,1739770245732,-299.55867545,0.0001378,2]
[353330285,1739770245741,-7438.69753278,0.00013904,2]
[353330286,1739770245751,-500.0,0.00013914,2]
[353330287,1739770245759,-500.0,0.00013914,2]
[353330288,1739770245768,-500.0,0.00013914,2]
[353330289,1739770245778,-500.0,0.00013914,2]
[353330290,1739770245787,-500.0,0.00013914,2]
[353330291,1739770245796,-500.0,0.00013914,2]
[353330292,1739770245806,-181.69423949,0.00013914,2]
[353330293,1739770245815,-177.04,0.00013923,2]
[353330294,1739770245825,-500.0,0.00013944,2]
[353330295,1739770245834,-500.0,0.00013944,2]
[353330296,1739770245843,-500.0,0.00013944,2]
[353330297,1739770245852,-500.0,0.00013944,2]
[353330298,1739770245861,-500.0,0.00013944,2]
[353330299,1739770245871,-410.91,0.00013944,2]
[353330300,1739770245879,-603.88,0.00013944,2]
[353330301,1739770245889,-500.0,0.00013944,2]
[353330302,1739770245898,-746.9,0.00013944,2]
[353330303,1739770245907,-500.0,0.00013944,2]
[353330304,1739770245917,-500.0,0.00013944,2]
[353330305,1739770245926,-500.0,0.00013944,2]
[353330306,1739770245936,-7208.89442487,0.00013986,2]
[353330307,1739770245945,-500.0,0.00013986,2]
[353330308,1739770245954,-7208.89442487,0.00013987,2]
[353330309,1739770245963,-2510.25172919,0.00013995,2]
[353330310,1739770245975,-4698.64269568,0.00013995,2]
[353330311,1739770245984,-500.0,0.00013996,2]
[353330312,1739770245993,-500.0,0.00013996,2]
[353330313,1739770246003,-500.0,0.00013996,2]
[353330314,1739770246012,-150.0,0.00014,2]
[353330315,1739770246021,-500.0,0.00014027,2]
[353330316,1739770246030,-247.83501743,0.00014027,2]
[353330317,1739770246041,-8.48701844,0.00014027,2]
[353330318,1739770246052,-500.0,0.00014027,2]
[353330319,1739770246061,-64.01298156,0.00014027,2]
[353330323,1739771137174,-400.0,0.00010685,2]
[353330324,1739771137195,-217.75,0.00012058,2]
[353330325,1739771137216,-217.75,0.0001218,2]
[353330326,1739771137237,-250.0,0.00012427,2]
[353330327,1739771137258,-300.0,0.00013365,2]
[353330328,1739771137280,-214.33406794,0.00013366,2]
[353330329,1739771240101,-464.39584623,0.00013232,2]
[353330330,1739771240269,-2208.18222291,0.00013232,2]
[353330331,1739771240296,-300.0,0.00013365,2]
[353330332,1739771240318,-285.66593206,0.00013366,2]
[353330333,1739771240341,-500.0,0.00013366,2]
[353330334,1739771240363,-500.0,0.00013366,2]
[353330335,1739771240385,-500.0,0.00013366,2]
[353330336,1739771240407,-500.0,0.00013366,2]
[353330337,1739771240430,-500.0,0.00013366,2]
[353330338,1739771240452,-506.96710252,0.00013366,2]
[353330339,1739771240475,-500.0,0.00013366,2]
[353330340,1739771240498,-500.0,0.00013366,2]
[353330341,1739771240520,-500.0,0.00013366,2]
[353330342,1739771240543,-500.0,0.00013366,2]
[353330343,1739771240565,-500.0,0.00013366,2]
[353330344,1739771240588,-500.0,0.00013366,2]
[353330345,1739771240611,-132.51967649,0.00013366,2]
[353330346,1739771240641,-367.48032351,0.00013366,2]
[353330347,1739771240663,-370.51967649,0.00013366,2]
[353330408,1739771432185,-291.75947256,0.00013266,2]
[353330410,1739771432195,-500.0,0.00013365,2]
[353330412,1739771432204,-500.0,0.00013365,2]
[353330414,1739771432213,-500.0,0.00013365,2]
[353330415,1739771432222,-500.0,0.00013365,2]
[353330417,1739771432231,-500.0,0.00013365,2]
[353330419,1739771432241,-129.48032351,0.00013366,2]
[353330421,1739771432250,-580.2,0.00013366,2]
[353330423,1739771432259,-500.0,0.00013366,2]
[353330424,1739771432269,-500.0,0.00013366,2]
[353330426,1739771432278,-500.0,0.00013366,2]
[353330428,1739771432287,-500.0,0.00013366,2]
[353330429,1739771432296,-500.0,0.00013366,2]
[353330430,1739771432305,-632.42,0.00013366,2]
[353330431,1739771432316,-466.14734876,0.00013366,2]
[353330432,1739771432327,-33.85265124,0.00013366,2]
[353330433,1739771432335,-500.0,0.00013366,2]
[353330434,1739771432345,-500.0,0.00013366,2]
[353330435,1739771432355,-525.01379249,0.00013366,2]
[353330436,1739771432367,-36.39620751,0.00013366,2]
[353330438,1739771432376,-261.8096164,0.00013366,2]
[353330518,1739771437852,-500.0,0.00013365,2]
[353330519,1739771437863,-238.1903836,0.00013366,2]
[353330520,1739771437872,-503.32517453,0.00013366,2]
[353330521,1739771437882,-500.0,0.00013366,2]
[353330522,1739771437891,-500.0,0.00013366,2]
[353330523,1739771437902,-500.0,0.00013366,2]
[353330524,1739771437911,-500.0,0.00013366,2]
[353330525,1739771437921,-549.9,0.00013366,2]
[353330526,1739771437930,-500.0,0.00013366,2]
[353330527,1739771437940,-500.0,0.00013366,2]
[353330528,1739771437949,-95.58230937,0.00013366,2]
[353330529,1739771437960,-404.41769063,0.00013366,2]
[353330530,1739771437970,-500.0,0.00013366,2]
[353330531,1739771437979,-500.0,0.00013366,2]
[353330532,1739771437988,-500.0,0.00013366,2]
[353330533,1739771437998,-242.68308728,0.00013366,2]
[353330534,1739771438007,-500.0,0.00013366,2]
[353330535,1739771438017,-500.0,0.00013366,2]
[353330536,1739771438026,-500.0,0.00013366,2]
[353330537,1739771438035,-500.0,0.00013366,2]
[353330538,1739771438046,-502.41257649,0.00013366,2]
[353330539,1739771438055,-504.91548459,0.00013366,2]
[353330540,1739771438065,-500.0,0.00013366,2]
[353330541,1739771438075,-503.10749382,0.00013366,2]
[353330542,1739771438085,-500.0,0.00013366,2]
[353330543,1739771438095,-501.61211815,0.00013366,2]
[353330544,1739771438104,-501.82278524,0.00013366,2]
[353330545,1739771438114,-500.0,0.00013366,2]
[353330546,1739771438123,-500.0,0.00013366,2]
[353330547,1739771438133,-501.43337913,0.00013366,2]
[353330548,1739771438142,-502.82692331,0.00013366,2]
[353330549,1739771438151,-501.7805349,0.00013366,2]
[353330550,1739771438160,-502.99243628,0.00013366,2]
[353330551,1739771438169,-501.97698171,0.00013366,2]
[353330552,1739771438179,-500.0,0.00013366,2]
[353330553,1739771438187,-502.41197344,0.00013366,2]
[353330554,1739771438197,-502.85106677,0.00013366,2]
[353330555,1739771438206,-500.93577102,0.00013366,2]
[353330556,1739771438215,-505.77069219,0.00013366,2]
[353330557,1739771438224,-501.18988863,0.00013366,2]
[353330558,1739771438234,-558.94678394,0.00013366,2]
[353330559,1739771438243,-500.0,0.00013366,2]
[353330560,1739771438252,-500.57653251,0.00013366,2]
[353330561,1739771438262,-501.19410509,0.00013366,2]
[353330562,1739771438272,-501.45145459,0.00013366,2]
[353330563,1739771438281,-403.68324573,0.00013366,2]
[353330564,1739771438291,-500.0,0.00013447,2]
[353330565,1739771438300,-500.0,0.00013447,2]
[353330566,1739771438310,-500.0,0.00013447,2]
[353330567,1739771438322,-500.0,0.00013447,2]
[353330568,1739771438333,-500.0,0.00013447,2]
[353330569,1739771438343,-500.0,0.00013447,2]
[353330570,1739771438352,-500.0,0.00013448,2]
[353330571,1739771438362,-500.0,0.00013448,2]
[353330572,1739771438371,-500.0,0.00013448,2]
[353330573,1739771438381,-500.0,0.00013448,2]
[353330574,1739771438390,-500.0,0.00013448,2]
[353330575,1739771438399,-500.0,0.00013448,2]
[353330576,1739771438409,-500.0,0.00013448,2]
[353330577,1739771438423,-500.0,0.00013448,2]
[353330578,1739771438432,-500.0,0.00013448,2]
[353330579,1739771438442,-500.0,0.00013448,2]
[353330580,1739771438452,-415.57,0.00013448,2]
[353330581,1739771438461,-500.0,0.00013448,2]
[353330582,1739771438471,-500.0,0.00013448,2]
[353330583,1739771438481,-500.0,0.00013448,2]
[353330584,1739771438490,-500.0,0.00013448,2]
[353330585,1739771438499,-258.86334626,0.00013448,2]
[353330586,1739771438509,-233.3585796,0.00013448,2]
[353330587,1739771438518,-500.0,0.00013448,2]
[353330588,1739771438528,-500.0,0.00013448,2]
[353330589,1739771438538,-360.46640634,0.00013448,2]
[353330590,1739771438548,-502.82535126,0.00013448,2]
[353330591,1739771438558,-500.0,0.00013448,2]
[353330592,1739771438567,-500.550584,0.00013448,2]
[353330593,1739771438578,-542.82113267,0.00013448,2]
[353330594,1739771438587,-244.2341205,0.00013448,2]
[353330595,1739771438596,-500.0,0.00013448,2]
[353330596,1739771438606,-500.0,0.00013529,2]
[353330597,1739771438616,-500.0,0.00013529,2]
[353330598,1739771438626,-500.0,0.00013529,2]
[353330599,1739771438635,-500.0,0.00013529,2]
[353330600,1739771438645,-297.0,0.00013529,2]
[353330601,1739771438655,-478.24,0.0001353,2]
[353330602,1739771438665,-212.64,0.0001353,2]
[353330603,1739771438675,-500.0,0.0001353,2]
[353330604,1739771438685,-253.89,0.0001353,2]
[353330605,1739771438695,-500.0,0.0001353,2]
[353330606,1739771438704,-183.09,0.0001353,2]
[353330607,1739771438714,-249.95,0.0001353,2]
[353330608,1739771438724,-500.0,0.0001353,2]
[353330609,1739771438734,-271.28,0.0001353,2]
[353330610,1739771438744,-340.92,0.0001353,2]
[353330611,1739771438754,-500.0,0.0001353,2]
[353330612,1739771438763,-207.3,0.0001353,2]
[353330613,1739771438773,-500.0,0.0001353,2]
[353330614,1739771438783,-500.0,0.0001353,2]
[353330615,1739771438794,-584.83742268,0.0001353,2]
[353330616,1739771438803,-500.0,0.0001353,2]
[353330617,1739771438816,-500.0,0.0001353,2]
[353330618,1739771438827,-500.0,0.00013612,2]
[353330619,1739771438836,-500.0,0.00013612,2]
[353330620,1739771438846,-500.0,0.00013612,2]
[353330621,1739771438855,-608.79,0.00013612,2]
[353330622,1739771438865,-500.0,0.00013612,2]
[353330623,1739771438875,-520.78,0.00013612,2]
[353330624,1739771438884,-500.0,0.00013612,2]
[353330625,1739771438896,-500.0,0.00013612,2]
[353330626,1739771438906,-500.0,0.00013612,2]
[353330627,1739771438916,-1116.44,0.00013612,2]
[353330628,1739771438925,-500.0,0.00013612,2]
[353330629,1739771438934,-349.90885732,0.00013612,2]
[353330630,1739771438948,-150.09114268,0.00013612,2]
[353330631,1739771438957,-386.72,0.00013612,2]
[353330632,1739771438967,-288.36431975,0.00013612,2]
[353330633,1739771438976,-500.0,0.00013612,2]
[353330634,1739771438985,-500.0,0.00013612,2]
[353330635,1739771438994,-568.59,0.00013612,2]
[353330636,1739771439003,-591.88,0.00013612,2]
[353330637,1739771439013,-551.43,0.00013612,2]
[353330638,1739771439022,-500.0,0.00013612,2]
[353330639,1739771439031,-500.0,0.00013612,2]
[353330640,1739771439040,-500.0,0.00013612,2]
[353330641,1739771439050,-500.0,0.00013612,2]
[353330642,1739771439060,-500.0,0.00013612,2]
[353330643,1739771439070,-501.78188328,0.00013612,2]
[353330644,1739771439079,-500.0,0.00013613,2]
[353330645,1739771439089,-540.04,0.00013613,2]
[353330646,1739771439099,-309.22,0.00013613,2]
[353330647,1739771439108,-482.57,0.00013613,2]
[353330648,1739771439118,-500.0,0.00013613,2]
[353330649,1739771439128,-500.0,0.00013613,2]
[353330650,1739771439138,-497.58338043,0.00013613,2]
[353330651,1739771439147,-286.82180387,0.00013613,2]
[353330652,1739771439156,-562.09701844,0.00013694,2]
[353330653,1739771439166,-608.79,0.00013694,2]
[353330654,1739771439175,-372.95,0.00013694,2]
[353330655,1739771439185,-557.89,0.00013694,2]
[353330656,1739771439195,-500.0,0.00013694,2]
[353330657,1739771439205,-1116.44,0.00013694,2]
[353330658,1739771439215,-500.0,0.00013694,2]
[353330659,1739771439224,-266.52,0.00013694,2]
[353330660,1739771439233,-500.0,0.00013694,2]
[353330661,1739771439243,-500.0,0.00013694,2]
[353330662,1739771439253,-500.0,0.00013694,2]
[353330663,1739771439263,-500.0,0.00013694,2]
[353330664,1739771439272,-500.0,0.00013694,2]
[353330665,1739771439282,-500.0,0.00013694,2]
[353330666,1739771439291,-500.0,0.00013694,2]
[353330667,1739771439301,-295.64,0.00013695,2]
[353330668,1739771439310,-500.0,0.00013695,2]
[353330669,1739771439320,-500.0,0.00013695,2]
[353330670,1739771439331,-500.0,0.00013698,2]
[353330671,1739771439340,-500.0,0.00013775,2]
[353330672,1739771439350,-500.0,0.00013775,2]
[353330673,1739771439360,-500.0,0.00013775,2]
[353330674,1739771439371,-180.39239464,0.00013775,2]
[353330675,1739771439381,-500.0,0.00013775,2]
[353330676,1739771439390,-5778.3316369,0.00013776,5]
[353330677,1739771439403,-3810.99269599,0.00013776,5]
[353330682,1739771439781,-34721.02177088,0.00013776,5]
[353330683,1739771439791,-608.79,0.00013776,2]
[353330684,1739771439801,-500.0,0.00013776,2]
[353330685,1739771439812,-1116.44,0.00013776,2]
[353330686,1739771439824,-500.0,0.00013776,2]
[353330687,1739771439832,-500.0,0.00013776,2]
[353330688,1739771439841,-500.0,0.00013776,2]
[353330689,1739771439851,-500.0,0.00013776,2]
[353330690,1739771439860,-500.0,0.00013776,2]
[353330691,1739771439870,-500.0,0.00013776,2]
[353330692,1739771439879,-500.0,0.00013776,2]
[353330693,1739771439890,-500.0,0.00013776,2]
[353330694,1739771439900,-325.21599199,0.00013777,2]
[353330695,1739771439910,-500.0,0.00013777,2]
[353330696,1739771439919,-500.0,0.0001378,2]
[353330697,1739771439928,-7438.69753278,0.0001383,2]
[353330698,1739771439938,-500.0,0.00013858,2]
[353330699,1739771439947,-500.0,0.00013858,2]
[353330700,1739771439956,-500.0,0.00013858,2]